fUST/lending_fUST_20251113
["ID","MTS","AMOUNT","RATE_DAILY","PERIOD"]
[393854109,1763042817164,-1001.97,0.00046027,120]
[393854110,1763042817215,-502.61,0.00046027,120]
[393854111,1763042817264,-500.0,0.00046027,120]
[393854112,1763042817312,-500.0,0.00046027,120]
[393854113,1763042817360,-500.0,0.00046027,120]
[393854114,1763042817410,-500.0,0.00046027,120]
[393854115,1763042817462,-500.0,0.00046027,120]
[393854116,1763042817510,-354.69480493,0.00046027,120]
[393854117,1763042817558,-1315.58,0.00046027,120]
[393854118,1763042817605,-500.0,0.00046027,120]
[393854119,1763042817653,-500.0,0.00046027,120]
[393854120,1763042817699,-672.3,0.00046027,120]
[393854121,1763042817750,-572.46,0.00046027,120]
[393854122,1763042817797,-500.0,0.00046027,14]
[393854123,1763042817843,-586.37,0.00046027,120]
[393854124,1763042817888,-676.52,0.00046027,120]
[393854125,1763042817936,-500.0,0.00046027,120]
[393854126,1763042817993,-500.0,0.00046027,120]
[393854127,1763042818043,-500.0,0.00046027,120]
[393854128,1763042818093,-968.8,0.00046027,120]
[393854129,1763042818140,-632.9,0.00046027,120]
[393854130,1763042818186,-500.0,0.00046027,120]
[393854131,1763042818232,-771.64,0.00046027,120]
[393854132,1763042818278,-397.3518463,0.00046027,120]
[393854133,1763042818327,-793.67,0.00046027,120]
[393854134,1763042818373,-500.0,0.00046027,120]
[393854135,1763042818420,-500.0,0.00046027,120]
[393854136,1763042818464,-500.0,0.00046027,120]
[393854137,1763042818507,-500.0,0.00046027,120]
[393854138,1763042818551,-500.0,0.00046027,120]
[393854139,1763042818595,-500.0,0.00046027,120]
[393854140,1763042818639,-657.17,0.00046027,120]
[393854141,1763042818684,-500.0,0.00046027,120]
[393854142,1763042818731,-500.0,0.00046027,120]
[393854143,1763042818776,-583.66,0.00046027,120]
[393854144,1763042818821,-729.55,0.00046027,120]
[393854145,1763042818867,-500.0,0.00046027,120]
[393854146,1763042818914,-217.13467656,0.00046027,120]
[393854147,1763042818961,-500.0,0.00046027,120]
[393854148,1763042819012,-708.19,0.00046027,120]
[393854149,1763042819062,-539.78169465,0.00046027,120]
[393854150,1763042819111,-500.0,0.00046027,120]
[393854151,1763042819165,-608.52,0.00046027,120]
[393854152,1763042819214,-622.73,0.00046027,120]
[393854153,1763042819278,-984.89,0.00046027,120]
[393854154,1763042819327,-506.1,0.00046027,120]
[393854155,1763042819377,-500.0,0.00046027,120]
[393854156,1763042819427,-500.0,0.00046027,120]
[393854157,1763042819478,-500.0,0.00046027,120]
[393854158,1763042819528,-500.0,0.00046027,120]
[393854159,1763042819579,-500.0,0.00046027,120]
[393854160,1763042819629,-607.31,0.00046027,120]
[393854161,1763042819677,-576.29,0.00046027,120]
[393854162,1763042819726,-500.0,0.00046027,120]
[393854163,1763042819775,-814.78,0.00046027,120]
[393854164,1763042819828,-500.0,0.00046027,120]
[393854165,1763042819879,-1920.4,0.00046027,120]
[393854166,1763042819931,-500.0,0.00046027,120]
[393854167,1763042819981,-500.0,0.00046027,120]
[393854168,1763042820035,-500.0,0.00046027,120]
[393854169,1763042820086,-436.39743075,0.00046027,120]
[393854170,1763042820140,-500.0,0.00046027,120]
[393854171,1763042820199,-500.0,0.00046027,120]
[393854172,1763042820260,-785.4,0.00046027,120]
[393854173,1763042820311,-500.0,0.00046027,120]
[393854174,1763042820361,-500.0,0.00046027,120]
[393854175,1763042820418,-500.0,0.00046027,120]
[393854176,1763042820472,-500.0,0.00046027,120]
[393854177,1763042820525,-538.65411641,0.00046027,120]
[393854178,1763042820577,-525.09,0.00046027,120]
[393854179,1763042820631,-727.84,0.00046027,120]
[393854180,1763042820682,-1392.98,0.00046027,120]
[393854181,1763042820730,-696.3,0.00046027,120]
[393854182,1763042820779,-520.93268579,0.00046027,120]
[393854183,1763042820829,-500.0,0.00046027,120]
[393854184,1763042820878,-500.0,0.00046027,120]
[393854185,1763042820927,-231.62020494,0.00046027,120]
[393854186,1763042820978,-834.05,0.00046027,120]
[393854187,1763042821027,-564.48497044,0.00046027,120]
[393854188,1763042821076,-720.82,0.00046027,120]
[393854189,1763042821129,-1237.59,0.00046027,120]
[393854190,1763042821178,-500.0,0.00046027,120]
[393854191,1763042821228,-874.82,0.00046027,120]
[393854192,1763042821276,-665.91,0.00046027,120]
[393854193,1763042821323,-500.0,0.00046027,120]
[393854194,1763042821370,-500.0,0.00046027,120]
[393854195,1763042821420,-500.0,0.00046027,120]
[393854196,1763042821471,-500.0,0.00046027,120]
[393854197,1763042821526,-500.0,0.00046027,120]
[393854198,1763042821578,-911.25,0.00046027,120]
[393854199,1763042821631,-907.41,0.00046027,120]
[393854200,1763042821683,-634.88,0.00046027,120]
[393854201,1763042821737,-500.0,0.00046027,120]
[393854202,1763042821789,-500.0,0.00046027,120]
[393854203,1763042821838,-1030.73,0.00046027,120]
[393854204,1763042821889,-884.45,0.00046027,120]
[393854205,1763042821940,-798.59,0.00046027,120]
[393854206,1763042821997,-500.0,0.00046027,120]
[393854207,1763042822051,-747.97,0.00046027,120]
[393854208,1763042822103,-1114.44,0.00046027,120]
[393854209,1763042822154,-502.51,0.00046027,120]
[393854210,1763042822384,-530.28245163,0.00046027,120]
[393854211,1763042822434,-500.0,0.00046027,120]
[393854212,1763042822480,-699.72,0.00046027,120]
[393854213,1763042822529,-1075.09,0.00046027,120]
[393854214,1763042822575,-500.0,0.00046027,120]
[393854215,1763042822622,-1116.74,0.00046027,120]
[393854216,1763042822669,-979.56,0.00046027,120]
[393854217,1763042822715,-500.0,0.00046027,120]
[393854218,1763042822761,-500.0,0.00046027,120]
[393854219,1763042822809,-909.44,0.00046027,120]
[393854220,1763042822854,-705.35,0.00046027,120]
[393854221,1763042822901,-500.0,0.00046027,120]
[393854222,1763042822949,-500.0,0.00046027,120]
[393854223,1763042823003,-500.0,0.00046027,120]
[393854224,1763042823057,-955.96,0.00046027,120]
[393854225,1763042823110,-500.0,0.00046027,120]
[393854226,1763042823166,-1456.37,0.00046027,120]
[393854227,1763042823220,-513.59,0.00046027,120]
[393854228,1763042823272,-1352.7,0.00046027,120]
[393854229,1763042823326,-605.44,0.00046027,120]
[393854230,1763042823375,-956.73,0.00046027,120]
[393854231,1763042823428,-500.0,0.00046027,120]
[393854232,1763042823478,-576.81197337,0.00046027,120]
[393854233,1763042823527,-848.55,0.00046027,120]
[393854234,1763042823578,-500.0,0.00046027,120]
[393854235,1763042823627,-500.0,0.00046027,120]
[393854236,1763042823675,-856.39,0.00046027,120]
[393854237,1763042823721,-407.52481974,0.00046027,120]
[393854238,1763042823775,-1196.74,0.00046027,120]
[393854239,1763042823826,-500.0,0.00046027,120]
[393854240,1763042823876,-500.0,0.00046027,120]
[393854241,1763042823924,-500.0,0.00046027,120]
[393854242,1763042823976,-500.0,0.00046027,120]
[393854243,1763042824027,-776.67,0.00046027,120]
[393854244,1763042824078,-500.0,0.00046027,120]
[393854245,1763042824128,-536.06,0.00046027,120]
[393854246,1763042824184,-538.23,0.00046027,120]
[393854247,1763042824248,-500.0,0.00046027,120]
[393854248,1763042824296,-500.0,0.00046027,120]
[393854249,1763042824347,-688.99,0.00046027,120]
[393854250,1763042824399,-546.49,0.00046027,120]
[393854251,1763042824449,-784.66,0.00046027,120]
[393854252,1763042824508,-1033.4,0.00046027,120]
[393854253,1763042824567,-597.4,0.00046027,120]
[393854254,1763042824619,-2168.73,0.00046027,120]
[393854255,1763042824670,-633.96,0.00046027,120]
[393854256,1763042824720,-611.25,0.00046027,120]
[393854257,1763042824773,-572.93,0.00046027,120]
[393854258,1763042824826,-565.22,0.00046027,120]
[393854259,1763042824882,-500.0,0.00046027,120]
[393854260,1763042824947,-9727.08,0.00046027,120]
[393854261,1763042825002,-751.23,0.00046027,120]
[393854262,1763042825055,-1341.8,0.00046027,120]
[393854263,1763042825108,-500.0,0.00046027,120]
[393854264,1763042825161,-1144.42,0.00046027,120]
[393854265,1763042825215,-605.2,0.00046027,120]
[393854266,1763042825265,-1010.86,0.00046027,120]
[393854267,1763042825314,-500.0,0.00046027,120]
[393854268,1763042825362,-746.17,0.00046027,120]
[393854269,1763042825410,-500.0,0.00046027,120]
[393854270,1763042825462,-634.34,0.00046027,120]
[393854271,1763042825510,-500.0,0.00046027,120]
[393854272,1763042825558,-500.0,0.00046027,120]
[393854273,1763042825607,-500.0,0.00046027,120]
[393854274,1763042825659,-2244.7,0.00046027,120]
[393854275,1763042825713,-500.0,0.00046027,120]
[393854276,1763042825765,-1085.54,0.00046027,120]
[393854277,1763042825819,-1101.8,0.00046027,120]
[393854278,1763042825867,-500.0,0.00046027,120]
[393854279,1763042825917,-532.19,0.00046027,120]
[393854280,1763042825968,-500.0,0.00046027,120]
[393854281,1763042826028,-665.23,0.00046027,120]
[393854282,1763042826086,-500.0,0.00046027,120]
[393854283,1763042826145,-713.7,0.00046027,120]
[393854284,1763042826198,-260.0761562,0.00046027,120]
[393854285,1763042826253,-777.29,0.00046027,120]
[393854286,1763042826304,-500.0,0.00046027,120]
[393854287,1763042826355,-500.0,0.00046027,120]
[393854288,1763042826403,-500.0,0.00046027,120]
[393854289,1763042826451,-1012.28,0.00046027,120]
[393854290,1763042826504,-510.73,0.00046027,120]
[393854291,1763042826555,-629.48,0.00046027,120]
[393854292,1763042826616,-567.19,0.00046027,120]
[393854293,1763042826664,-500.0,0.00046027,120]
[393854294,1763042826713,-784.63,0.00046027,120]
[393854295,1763042826760,-1247.83,0.00046027,120]
[393854296,1763042826809,-500.0,0.00046027,120]
[393854297,1763042826857,-531.51677166,0.00046068,10]
[393854298,1763042826905,-500.0,0.00046301,120]
[393854299,1763042826965,-527.75,0.00046301,120]
[393854300,1763042827024,-500.0,0.00046301,120]
[393854301,1763042827075,-682.26,0.00046301,120]
[393854302,1763042827126,-357.57853846,0.00046301,120]
[393854303,1763042827177,-500.0,0.00046301,120]
[393854304,1763042827227,-500.0,0.00046301,120]
[393854305,1763042827279,-500.0,0.00046301,120]
[393854306,1763042827328,-500.0,0.00046301,120]
[393854307,1763042827378,-500.0,0.00046301,120]
[393854308,1763042827428,-500.0,0.00046301,120]
[393854309,1763042827477,-500.0,0.00046301,120]
[393854310,1763042827527,-500.0,0.00046301,120]
[393854311,1763042827575,-500.0,0.00046301,120]
[393854312,1763042827626,-578.65819742,0.00046301,120]
[393854313,1763042827803,-500.0,0.00046301,120]
[393854314,1763042827855,-500.0,0.00046301,120]
[393854315,1763042827908,-500.0,0.00046301,120]
[393854316,1763042827959,-500.0,0.00046301,120]
[393854317,1763042828011,-626.58,0.00046301,120]
[393854318,1763042828067,-500.0,0.00046301,120]
[393854319,1763042828121,-1371.44,0.00046301,120]
[393854320,1763042828174,-1061.56,0.00046301,120]
[393854321,1763042828229,-508.06,0.00046301,120]
[393854322,1763042828280,-711.84,0.00046301,120]
[393854323,1763042828330,-641.46,0.00046301,120]
[393854324,1763042828382,-500.0,0.00046301,120]
[393854325,1763042828435,-500.0,0.00046301,120]
[393854326,1763042828486,-1088.25,0.00046301,120]
[393854327,1763042828539,-500.0,0.00046301,120]
[393854328,1763042828589,-764.26,0.00046301,120]
[393854329,1763042828635,-228.22,0.00046301,120]
[393854330,1763042828683,-500.0,0.00046301,120]
[393854331,1763042828733,-542.97,0.00046301,120]
[393854332,1763042828786,-500.0,0.00046301,120]
[393854333,1763042828839,-1001.97,0.00046301,120]
[393854334,1763042828889,-502.61,0.00046301,120]
[393854335,1763042828940,-500.0,0.00046301,120]
[393854336,1763042828994,-500.0,0.00046301,120]
[393854337,1763042829046,-500.0,0.00046301,120]
[393854338,1763042829097,-500.0,0.00046301,120]
[393854339,1763042829147,-500.0,0.00046301,120]
[393854340,1763042829198,-1315.58,0.00046301,120]
[393854341,1763042829250,-500.0,0.00046301,120]
[393854342,1763042829303,-500.0,0.00046301,120]
[393854343,1763042829353,-672.3,0.00046301,120]
[393854344,1763042829403,-572.46,0.00046301,120]
[393854345,1763042829456,-500.0,0.00046301,14]
[393854346,1763042829507,-586.37,0.00046301,120]
[393854347,1763042829558,-676.52,0.00046301,120]
[393854348,1763042829612,-500.0,0.00046301,120]
[393854349,1763042829668,-500.0,0.00046301,120]
[393854350,1763042829727,-496.62962144,0.00046301,120]
[393854351,1763042829783,-968.8,0.00046301,120]
[393854352,1763042829837,-632.9,0.00046301,120]
[393854353,1763042829889,-513.70329125,0.00046301,120]
[393854354,1763042829941,-771.64,0.00046301,120]
[393854355,1763042829992,-793.67,0.00046301,120]
[393854356,1763042830046,-500.0,0.00046301,120]
[393854357,1763042830099,-500.0,0.00046301,120]
[393854358,1763042830150,-500.0,0.00046301,120]
[393854359,1763042830199,-500.0,0.00046301,120]
[393854360,1763042830250,-500.0,0.00046301,120]
[393854361,1763042830298,-500.0,0.00046301,120]
[393854362,1763042830354,-657.17,0.00046301,120]
[393854363,1763042830412,-500.0,0.00046301,120]
[393854364,1763042830467,-500.0,0.00046301,120]
[393854365,1763042830526,-583.66,0.00046301,120]
[393854366,1763042830576,-729.55,0.00046301,120]
[393854367,1763042830626,-389.39058057,0.00046301,120]
[393854368,1763042830673,-500.0,0.00046301,120]
[393854369,1763042830721,-708.19,0.00046301,120]
[393854370,1763042830769,-500.0,0.00046301,120]
[393854371,1763042830817,-608.52,0.00046301,120]
[393854372,1763042830865,-622.73,0.00046301,120]
[393854373,1763042830916,-984.89,0.00046301,120]
[393854374,1763042830970,-506.1,0.00046301,120]
[393854375,1763042831021,-500.0,0.00046301,120]
[393854376,1763042831073,-500.0,0.00046301,120]
[393854377,1763042831124,-500.0,0.00046301,120]
[393854378,1763042831174,-500.0,0.00046301,120]
[393854379,1763042831223,-500.0,0.00046301,120]
[393854380,1763042831272,-607.31,0.00046301,120]
[393854381,1763042831325,-576.29,0.00046301,120]
[393854382,1763042831374,-500.0,0.00046301,120]
[393854383,1763042831425,-814.78,0.00046301,120]
[393854384,1763042831473,-500.0,0.00046301,120]
[393854385,1763042831519,-1920.4,0.00046301,120]
[393854386,1763042831564,-500.0,0.00046301,120]
[393854387,1763042831612,-500.0,0.00046301,120]
[393854388,1763042831662,-500.0,0.00046301,120]
[393854389,1763042831711,-488.21547396,0.00046301,120]
[393854390,1763042831760,-500.0,0.00046301,120]
[393854391,1763042831811,-785.4,0.00046301,120]
[393854392,1763042831860,-500.0,0.00046301,120]
[393854393,1763042831908,-500.0,0.00046301,120]
[393854394,1763042831958,-500.0,0.00046301,120]
[393854395,1763042832012,-500.0,0.00046301,120]
[393854396,1763042832061,-525.09,0.00046301,120]
[393854397,1763042832111,-727.84,0.00046301,120]
[393854398,1763042832163,-1392.98,0.00046301,120]
[393854399,1763042832217,-696.3,0.00046301,120]
[393854400,1763042832266,-500.0,0.00046301,120]
[393854401,1763042832315,-500.0,0.00046301,120]
[393854402,1763042832364,-834.05,0.00046301,120]
[393854403,1763042832418,-720.82,0.00046301,120]
[393854404,1763042832471,-1237.59,0.00046301,120]
[393854405,1763042832522,-500.0,0.00046301,120]
[393854406,1763042832572,-874.82,0.00046301,120]
[393854407,1763042832624,-665.91,0.00046301,120]
[393854408,1763042832673,-500.0,0.00046301,120]
[393854409,1763042832723,-500.0,0.00046301,120]
[393854410,1763042832784,-500.0,0.00046301,120]
[393854411,1763042832841,-500.0,0.00046301,120]
[393854412,1763042832894,-911.25,0.00046301,120]
[393854413,1763042832947,-907.41,0.00046301,120]
[393854414,1763042833000,-634.88,0.00046301,120]
[393854415,1763042833054,-500.0,0.00046301,120]
[393854416,1763042833110,-500.0,0.00046301,120]
[393854417,1763042833291,-1030.73,0.00046301,120]
[393854418,1763042833343,-884.45,0.00046301,120]
[393854419,1763042833395,-798.59,0.00046301,120]
[393854420,1763042833447,-500.0,0.00046301,120]
[393854421,1763042833499,-747.97,0.00046301,120]
[393854422,1763042833552,-1114.44,0.00046301,120]
[393854423,1763042833605,-502.51,0.00046301,120]
[393854424,1763042833656,-500.0,0.00046301,120]
[393854425,1763042833706,-699.72,0.00046301,120]
[393854426,1763042833761,-1075.09,0.00046301,120]
[393854427,1763042833813,-500.0,0.00046301,120]
[393854428,1763042833866,-1116.74,0.00046301,120]
[393854429,1763042833920,-979.56,0.00046301,120]
[393854430,1763042833978,-500.0,0.00046301,120]
[393854431,1763042834037,-500.0,0.00046301,120]
[393854432,1763042834093,-909.44,0.00046301,120]
[393854433,1763042834149,-705.35,0.00046301,120]
[393854434,1763042834207,-500.0,0.00046301,120]
[393854435,1763042834267,-500.0,0.00046301,120]
[393854436,1763042834318,-500.0,0.00046301,120]
[393854437,1763042834372,-955.96,0.00046301,120]
[393854438,1763042834427,-500.0,0.00046301,120]
[393854439,1763042834480,-1456.37,0.00046301,120]
[393854440,1763042834530,-513.59,0.00046301,120]
[393854441,1763042834580,-1352.7,0.00046301,120]
[393854442,1763042834629,-605.44,0.00046301,120]
[393854443,1763042834681,-956.73,0.00046301,120]
[393854444,1763042834731,-500.0,0.00046301,120]
[393854445,1763042834782,-848.55,0.00046301,120]
[393854446,1763042834834,-500.0,0.00046301,120]
[393854447,1763042834887,-500.0,0.00046301,120]
[393854448,1763042834940,-856.39,0.00046301,120]
[393854449,1763042834994,-1196.74,0.00046301,120]
[393854450,1763042835048,-500.0,0.00046301,120]
[393854451,1763042835099,-500.0,0.00046301,120]
[393854452,1763042835150,-500.0,0.00046301,120]
[393854453,1763042835200,-500.0,0.00046301,120]
[393854454,1763042835250,-776.67,0.00046301,120]
[393854455,1763042835298,-500.0,0.00046301,120]
[393854456,1763042835347,-536.06,0.00046301,120]
[393854457,1763042835396,-538.23,0.00046301,120]
[393854458,1763042835445,-500.0,0.00046301,120]
[393854459,1763042835494,-500.0,0.00046301,120]
[393854460,1763042835547,-688.99,0.00046301,120]
[393854461,1763042835596,-546.49,0.00046301,120]
[393854462,1763042835645,-784.66,0.00046301,120]
[393854463,1763042835693,-1033.4,0.00046301,120]
[393854464,1763042835745,-597.4,0.00046301,120]
[393854465,1763042835800,-2168.73,0.00046301,120]
[393854466,1763042835852,-633.96,0.00046301,120]
[393854467,1763042835904,-611.25,0.00046301,120]
[393854468,1763042835953,-572.93,0.00046301,120]
[393854469,1763042836007,-565.22,0.00046301,120]
[393854470,1763042836059,-500.0,0.00046301,120]
[393854471,1763042836111,-751.23,0.00046301,120]
[393854472,1763042836164,-9727.08,0.00046301,120]
[393854473,1763042836214,-1341.8,0.00046301,120]
[393854474,1763042836263,-500.0,0.00046301,120]
[393854475,1763042836309,-1144.42,0.00046301,120]
[393854476,1763042836356,-605.2,0.00046301,120]
[393854477,1763042836404,-1010.86,0.00046301,120]
[393854478,1763042836453,-500.0,0.00046301,120]
[393854479,1763042836508,-746.17,0.00046301,120]
[393854480,1763042836555,-500.0,0.00046301,120]
[393854481,1763042836604,-634.34,0.00046301,120]
[393854482,1763042836657,-500.0,0.00046301,120]
[393854483,1763042836708,-500.0,0.00046301,120]
[393854484,1763042836762,-500.0,0.00046301,120]
[393854485,1763042836815,-2244.7,0.00046301,120]
[393854486,1763042836866,-500.0,0.00046301,120]
[393854487,1763042836923,-1085.54,0.00046301,120]
[393854488,1763042836984,-1101.8,0.00046301,120]
[393854489,1763042837037,-500.0,0.00046301,120]
[393854490,1763042837089,-532.19,0.00046301,120]
[393854491,1763042837141,-500.0,0.00046301,120]
[393854492,1763042837195,-665.23,0.00046301,120]
[393854493,1763042837248,-500.0,0.00046301,120]
[393854494,1763042837299,-713.7,0.00046301,120]
[393854495,1763042837351,-777.29,0.00046301,120]
[393854496,1763042837402,-500.0,0.00046301,120]
[393854497,1763042837456,-511.72165829,0.00046301,120]
[393854498,1763042837512,-500.0,0.00046301,120]
[393854499,1763042837563,-1012.28,0.00046301,120]
[393854500,1763042837613,-510.73,0.00046301,120]
[393854501,1763042837662,-629.48,0.00046301,120]
[393854502,1763042837713,-567.19,0.00046301,120]
[393854503,1763042837764,-500.0,0.00046301,120]
[393854504,1763042837816,-784.63,0.00046301,120]
[393854505,1763042837867,-1247.83,0.00046301,120]
[393854506,1763042837917,-500.0,0.00046301,120]
[393854507,1763042837969,-633.08843994,0.00046316,10]
[393854508,1763042838020,-1500.0,0.00046368,10]
[393854509,1763042838074,-157.283892,0.00046466,60]
[393854510,1763042838127,-2029.55,0.000465,14]
[393854511,1763042838178,-500.0,0.00046575,120]
[393854512,1763042838229,-527.75,0.00046575,120]
[393854513,1763042838279,-500.0,0.00046575,120]
[393854514,1763042838327,-682.26,0.00046575,120]
[393854515,1763042838376,-500.0,0.00046575,120]
[393854516,1763042838427,-500.0,0.00046575,120]
[393854517,1763042838475,-500.0,0.00046575,120]
[393854518,1763042838522,-500.0,0.00046575,120]
[393854519,1763042838571,-500.0,0.00046575,120]
[393854520,1763042838750,-500.0,0.00046575,120]
[393854521,1763042838802,-500.0,0.00046575,120]
[393854522,1763042838852,-500.0,0.00046575,120]
[393854523,1763042838900,-500.0,0.00046575,120]
[393854524,1763042838949,-500.0,0.00046575,120]
[393854525,1763042838998,-500.0,0.00046575,120]
[393854526,1763042839046,-500.0,0.00046575,120]
[393854527,1763042839098,-500.0,0.00046575,120]
[393854528,1763042839149,-626.58,0.00046575,120]
[393854529,1763042839201,-500.0,0.00046575,120]
[393854530,1763042839249,-1371.44,0.00046575,120]
[393854531,1763042839296,-1061.56,0.00046575,120]
[393854532,1763042839343,-508.06,0.00046575,120]
[393854533,1763042839392,-711.84,0.00046575,120]
[393854534,1763042839445,-641.46,0.00046575,120]
[393854535,1763042839494,-500.0,0.00046575,120]
[393854536,1763042839547,-500.0,0.00046575,120]
[393854537,1763042839605,-1088.25,0.00046575,120]
[393854538,1763042839670,-500.0,0.00046575,120]
[393854539,1763042839724,-764.26,0.00046575,120]
[393854540,1763042839774,-228.22,0.00046575,120]
[393854541,1763042839824,-500.0,0.00046575,120]
[393854542,1763042839875,-542.97,0.00046575,120]
[393854543,1763042839925,-500.0,0.00046575,120]
[393854544,1763042839978,-1001.97,0.00046575,120]
[393854545,1763042840033,-502.61,0.00046575,120]
[393854546,1763042840085,-500.0,0.00046575,120]
[393854547,1763042840138,-500.0,0.00046575,120]
[393854548,1763042840188,-500.0,0.00046575,120]
[393854549,1763042840240,-500.0,0.00046575,120]
[393854550,1763042840290,-500.0,0.00046575,120]
[393854551,1763042840340,-1315.58,0.00046575,120]
[393854552,1763042840393,-500.0,0.00046575,120]
[393854553,1763042840443,-500.0,0.00046575,120]
[393854554,1763042840493,-672.3,0.00046575,120]
[393854555,1763042840542,-572.46,0.00046575,120]
[393854556,1763042840588,-606.95038239,0.00046575,14]
[393854557,1763042840636,-586.37,0.00046575,120]
[393854558,1763042840681,-676.52,0.00046575,120]
[393854559,1763042840727,-500.0,0.00046575,120]
[393854560,1763042840773,-500.0,0.00046575,120]
[393854561,1763042840820,-968.8,0.00046575,120]
[393854562,1763042840865,-632.9,0.00046575,120]
[393854563,1763042840912,-771.64,0.00046575,120]
[393854564,1763042840959,-793.67,0.00046575,120]
[393854565,1763042841007,-500.0,0.00046575,120]
[393854566,1763042841054,-500.0,0.00046575,120]
[393854567,1763042841103,-500.0,0.00046575,120]
[393854568,1763042841151,-500.0,0.00046575,120]
[393854569,1763042841199,-500.0,0.00046575,120]
[393854570,1763042841244,-500.0,0.00046575,120]
[393854571,1763042841289,-657.17,0.00046575,120]
[393854572,1763042841335,-500.0,0.00046575,120]
[393854573,1763042841381,-500.0,0.00046575,120]
[393854574,1763042841431,-583.66,0.00046575,120]
[393854575,1763042841478,-729.55,0.00046575,120]
[393854576,1763042841526,-500.0,0.00046575,120]
[393854577,1763042841573,-708.19,0.00046575,120]
[393854578,1763042841619,-500.0,0.00046575,120]
[393854579,1763042841663,-608.52,0.00046575,120]
[393854580,1763042841708,-622.73,0.00046575,120]
[393854581,1763042841754,-984.89,0.00046575,120]
[393854582,1763042841804,-506.1,0.00046575,120]
[393854583,1763042841852,-500.0,0.00046575,120]
[393854584,1763042841899,-500.0,0.00046575,120]
[393854585,1763042841946,-500.0,0.00046575,120]
[393854586,1763042841993,-500.0,0.00046575,120]
[393854587,1763042842040,-500.0,0.00046575,120]
[393854588,1763042842089,-607.31,0.00046575,120]
[393854589,1763042842138,-576.29,0.00046575,120]
[393854590,1763042842189,-500.0,0.00046575,120]
[393854591,1763042842239,-814.78,0.00046575,120]
[393854592,1763042842289,-500.0,0.00046575,120]
[393854593,1763042842339,-1920.4,0.00046575,120]
[393854594,1763042842391,-500.0,0.00046575,120]
[393854595,1763042842441,-222.04424015,0.00046575,120]
[393854596,1763042842492,-500.0,0.00046575,120]
[393854597,1763042842544,-500.0,0.00046575,120]
[393854598,1763042842594,-785.4,0.00046575,120]
[393854599,1763042842644,-500.0,0.00046575,120]
[393854600,1763042842694,-500.0,0.00046575,120]
[393854601,1763042842743,-500.0,0.00046575,120]
[393854602,1763042842792,-500.0,0.00046575,120]
[393854603,1763042842842,-525.09,0.00046575,120]
[393854604,1763042842892,-727.84,0.00046575,120]
[393854605,1763042842942,-1392.98,0.00046575,120]
[393854606,1763042842992,-696.3,0.00046575,120]
[393854607,1763042843042,-477.0309854,0.00046575,120]
[393854608,1763042843092,-425.35419422,0.00046575,120]